Cogmind - Beta 13 @@@ ROGUE MODE // 2024.03.10 @ 07:59:16 Player: Yorkinshire Result: Destroyed by G-47 Trooper with Particle Gun Performance ------------- Evolutions (1) 500 Regions Visited (4) 800 Robots Destroyed (24) 120 Value Destroyed (705) 705 Prototype IDs (1) 20 Alien Tech Used (0) 0 Bonus (-135) -135 TOTAL SCORE: 2010 Bonus ------- Friendly Fire -135 Cogmind --------- Core Integrity 0/400 Matter 300/300 Energy 100/100 System Corruption 0% Temperature Cool (9) Movement Core (50) Location -9/Mines Parts ------- > --- POWER (1) -------- (None) > --- PROPULSION (3) --- (None) > --- UTILITY (3) ------ Targeting Computer > --- WEAPON (2) ------- (None) > --- INVENTORY (5) ---- Light Ion Engine Heat Sink Particle Gun Beam Cannon Rocket Launcher Peak State ------------ > --- POWER ------------ Light Ion Engine > --- PROPULSION ------- Compact Wheel Compact Wheel Compact Wheel > --- UTILITY ---------- Targeting Computer Light Armor Plating Sensor Drone Bay > --- WEAPON ----------- Beam Cannon Heavy Assault Rifle > --- INVENTORY -------- Light Ion Engine Heat Sink Particle Gun Beam Cannon Rocket Launcher [Rating: 17] Favorites ----------- Power Light Ion Engine Engine Light Ion Engine Power Core Light Nuclear Core Propulsion Aluminum Leg Leg Aluminum Leg Wheel Compact Wheel Utility Targeting Computer Device Heat Sink Processor Targeting Computer Protection Weapon Shielding Weapon Medium Laser Energy Gun Medium Laser Energy Cannon Beam Cannon Ballistic Gun Heavy Assault Rifle Launcher Rocket Launcher Build | -11 -10 -10 -9 -9 ------- Run | Yrd Mat Min Mat Min Slots Evolved 2 | . . . 2 . Power . | . . . . . Propulsion 1 | . . . 1 . Utility 1 | . . . 1 . Weapon . | . . . . . Parts Attached 30 | 7 1 9 6 7 Power 5 | 2 . 2 . 1 Engine 4 | 2 . 1 . 1 Core 1 | . . 1 . . Reactor . | . . . . . Propulsion 9 | 2 . 3 1 3 Treads . | . . . . . Leg 6 | 2 . 3 1 . Wheel 3 | . . . . 3 Hover . | . . . . . Flight . | . . . . . Utility 7 | 1 1 2 1 2 Device 3 | 1 . . 1 1 Storage . | . . . . . Processor 2 | . 1 1 . . Hackware . | . . . . . Protection 2 | . . 1 . 1 Artifact . | . . . . . Weapon 9 | 2 . 2 4 1 Energy Gun 4 | 2 . 1 1 . Energy Cannon 2 | . . . 2 . Ballistic Gun 1 | . . . . 1 Ballistic Cannon . | . . . . . Launcher 2 | . . 1 1 . Special Weapon . | . . . . . Impact Weapon . | . . . . . Slashing Weapon . | . . . . . Piercing Weapon . | . . . . . Special Melee Weapon . | . . . . . Unidentified Prototypes 1 | . . . . 1 Parts Lost 14 | . . 3 2 9 Power 3 | . . 1 1 1 Propulsion 4 | . . . . 4 Utility 4 | . . 1 1 2 Weapon 3 | . . 1 . 2 Highest Loss Streak 7 | . . 2 1 7 To Critical Strikes . | . . . . . Average Slot Usage (%) 89 | . 94 98 94 74 Engine 8 | . 14 12 6 4 Leg 24 | . 28 28 33 12 Wheel 3 | . . . . 11 Device 11 | . 14 10 11 11 Processor 11 | . 8 12 11 11 Protection 6 | . . 5 11 7 Energy Gun 12 | . 28 24 7 . Energy Cannon 6 | . . . 9 10 Ballistic Gun 1 | . . . . 6 Launcher 1 | . . 1 5 . Naked Turns . | . . . . . Heaviest Build 26 | 10 10 11 12 26 Greatest Support 48 | 20 20 20 30 48 Greatest Overweight (x) 1 | . . . . 1 Average Overweight (x) . | . . . . . Largest Inventory Capacity 5 | 5 5 5 5 5 Average Capacity 5 | 5 5 5 5 5 Most Carried 5 | 4 5 5 5 5 Average Carried 4 | . 4 4 3 4 Final Capacity 5 | 5 5 5 5 5 Final Carried 5 | 4 5 4 5 5 Class Distribution -------------------- 53% | Mutant 46% | Scavenger-Mutant Dominant Class ---------------- Mutant | -10/Materials Mutant | -10/Mines Scavenger-Mutant | -9/Materials Scavenger-Mutant | -9/Mines Resources | -11 -10 -10 -9 -9 ----------- Run | Yrd Mat Min Mat Min Matter Collected 555 | 249 . 82 128 96 Remotely . | . . . . . Salvage Created 782 | 32 . 274 358 118 Parts 51 | 4 . 17 22 8 Haulers Intercepted . | . . . . . Recyclers Shooed . | . . . . . Parts Field Recycled . | . . . . . Retrieved Matter . | . . . . . Parts Self-Destructed . | . . . . . Prevented . | . . . . . Kills | -11 -10 -10 -9 -9 ------- Run | Yrd Mat Min Mat Min Combat Hostiles Destroyed 22 | 1 . 9 8 4 Guns 12 | 1 . 6 4 1 Cannons 5 | . . . 2 3 AOE 4 | . . 2 2 . Classes Destroyed 6 | 1 . 1 2 2 Recycler 1 | . . . . 1 Drone 1 | . . . . 1 Watcher 1 | . . . 1 . Swarmer 7 | . . 3 . 4 Grunt 11 | 1 . 6 4 . Sentry 4 | . . . 4 . Best Kill Streak 7 | 1 . 4 7 3 Combat Bots Only 6 | 1 . 4 6 3 Max Kills in Single Turn 2 | 1 . 1 2 1 Gunslinging . | . . . . . Exploded 2 | . . 1 2 . Melee . | . . . . . Uniques/NPCs Destroyed . | . . . . . Combat | -11 -10 -10 -9 -9 -------- Run | Yrd Mat Min Mat Min Hostile Shots Fired 299 | 4 9 43 62 181 Missed 88 | 3 5 12 21 47 Damage Taken 2066 | 10 54 411 469 1122 Core 490 | . 42 38 102 308 Absorbed by Shields . | . . . . . Redirected to Shielding 51 | . . 19 32 . Core Remaining (%) 84 | 100 . 68 . . Volleys Fired 62 | 3 . 23 19 17 Largest 2 | 2 . 2 2 2 Hottest 120 | 100 . 115 120 83 Shots Fired 108 | 6 . 41 27 34 Gun 70 | 6 . 39 8 17 Cannon 34 | . . . 17 17 Launcher 4 | . . 2 2 . Special . | . . . . . Kinetic 17 | . . . . 17 Thermal 79 | 6 . 39 17 17 Explosive 4 | . . 2 2 . Electromagnetic 8 | . . . 8 . Robot Hit Streak 9 | 1 . 9 9 8 Robot Miss Streak 4 | 2 . 2 1 4 Penetration Max . | . . . . . Secondary Targets 2 | . . 2 . . Max Gunslinging Chain 1 | . . 1 . . Shots Hit Robots 74 | 2 . 30 23 19 Core Hits 44 | 2 1 18 16 7 Critical Kills . | . . . . . Critical Parts Destroyed . | . . . . . Critical Strikes 8 | . . 7 1 . Burn 7 | . . 7 . . Corrupt 1 | . . . 1 . Melee Attacks . | . . . . . Impact . | . . . . . Slashing . | . . . . . Piercing . | . . . . . Sneak Attacks . | . . . . . Combat Hostiles . | . . . . . Follow-up Attacks . | . . . . . Damage Inflicted 1399 | 25 5 482 550 337 Guns 653 | 25 . 377 106 145 Cannons 473 | . . . 281 192 Explosions 268 | . . 105 163 . Melee . | . . . . . Ramming 5 | . 5 . . . Kinetic 145 | . . . . 145 Thermal 875 | 25 . 377 281 192 Explosive 268 | . . 105 163 . Electromagnetic 106 | . . . 106 . Impact . | . . . . . Slashing . | . . . . . Piercing . | . . . . . Highest Corruption . | . . . . . Average Corruption . | . . . . . Corruption Purged . | . . . . . Corruption Blocked . | . . . . . Overload Shots . | . . . . . Overflow Damage 17 | . . 1 . 16 Projectiles 16 | . . . . 16 Explosions 1 | . . 1 . . Melee . | . . . . . Knockbacks . | . . . . . Impact . | . . . . . Kinetic . | . . . . . Secondary . | . . . . . Self-Inflicted Damage 58 | . . 51 7 . Shots 3 | . . 2 1 . Rammed . | . . . . . Targets Rammed 2 | . 1 1 . . Kicked 2 | . 1 1 . . Crushed . | . . . . . Highest Temperature 197 | 123 . 151 197 90 Average Temperature 59 | 67 . 57 90 40 Received Heat Transfer 330 | 6 33 159 87 45 Siege Activations . | . . . . . Robots Corrupted . | . . . . . Combat Hostiles . | . . . . . Parts Fried . | . . . . . Impact Corruptions . | . . . . . Robots Melted 1 | . . 1 . . Combat Hostiles 1 | . . 1 . . Parts Melted 7 | . . 3 4 . Heat Transferred 2701 | 74 . 1628 592 407 Parts Sabotaged . | . . . . . Parts Stolen . | . . . . . Parts Stripped . | . . . . . Power Chain Reactions . | . . . . . Alert | -11 -10 -10 -9 -9 ------- Run | Yrd Mat Min Mat Min Peak Influence 388 | 20 13 210 388 247 Initial 147 | . 13 4 81 147 Average 156 | 3 13 104 274 195 Maximum Alert Level 1 | . . 1 1 1 Low Security (%) 63 | 100 100 88 26 49 Level 1 36 | . . 11 73 50 Level 2 . | . . . . . Level 3 . | . . . . . Level 4 . | . . . . . Level 5 . | . . . . . High Security . | . . . . . Max Security . | . . . . . Squads Dispatched 1 | . 1 . . . Investigation 1 | . 1 . . . Extermination . | . . . . . Reinforcement . | . . . . . Assault . | . . . . . Garrison . | . . . . . Intercept . | . . . . . Searches Triggered . | . . . . . Construction Impeded . | . . . . . Haulers Reinforced . | . . . . . Active Scanning Responses . | . . . . . Cargo Convoy Interrupts . | . . . . . Stealth | -11 -10 -10 -9 -9 --------- Run | Yrd Mat Min Mat Min Distress Signals . | . . . . . Communications Jammed . | . . . . . Distress Signals . | . . . . . Times Spotted 47 | 1 4 9 19 14 Peak Tracking Total 9 | 1 5 4 9 6 Tactical Retreats 3 | . . . . 3 Traps | -11 -10 -10 -9 -9 ------- Run | Yrd Mat Min Mat Min Traps Triggered 1 | . 1 . . . Indirectly . | . . . . . Trap Hack Attempts . | . . . . . Triggered . | . . . . . Disarmed . | . . . . . Reprogrammed . | . . . . . Reused . | . . . . . Traps Extracted . | . . . . . Installed . | . . . . . Triggered . | . . . . . Machines | -11 -10 -10 -9 -9 ---------- Run | Yrd Mat Min Mat Min Machines Disabled 2 | . . . 2 . Max in Single Turn 1 | . . . 1 . Machines Repaired . | . . . . . Machines Dismantled . | . . . . . Machines Sabotaged . | . . . . . Overloaded Fab Kills . | . . . . . Hacking | -11 -10 -10 -9 -9 --------- Run | Yrd Mat Min Mat Min Machines Accessed 5 | . 1 1 2 1 Terminals 3 | . . 1 2 . Fabricators . | . . . . . Repair Stations . | . . . . . Recycling Units 1 | . 1 . . . Scanalyzers . | . . . . . Garrison Access . | . . . . . Total Hacks 8 | . 1 1 5 1 Successful 6 | . 1 1 3 1 Failed 2 | . . . 2 . Catastrophic . | . . . . . Database Lockouts . | . . . . . Manual 1 | . . 1 . . Terminals 6 | . . 1 5 . Fabricators . | . . . . . Repair Stations . | . . . . . Recycling Units 1 | . 1 . . . Scanalyzers . | . . . . . Garrison Access . | . . . . . Terminal Hacks 5 | . . 1 3 1 Record 2 | . . 1 1 . Open Door 1 | . . . . 1 Transport Status 1 | . . . 1 . Hauler Manifests 1 | . . . 1 . Fabricator Hacks . | . . . . . Repair Station Hacks . | . . . . . Recycling Unit Hacks 1 | . 1 . . . Report Inventory 1 | . 1 . . . Scanalyzer . | . . . . . Garrison Access Hacks . | . . . . . Unauthorized Hacks . | . . . . . Terminals . | . . . . . Fabricators . | . . . . . Repair Stations . | . . . . . Recycling Units . | . . . . . Scanalyzers . | . . . . . Garrison Access . | . . . . . Data Cores Recovered . | . . . . . Used . | . . . . . Hacking Detections 3 | . . 1 2 . Full Trace Events . | . . . . . Feedback Events . | . . . . . Feedback Blocked . | . . . . . Robot Schematics Acquired . | . . . . . Robots Built . | . . . . . Authchips . | . . . . . Time . | . . . . . Total Robot Build Rating . | . . . . . Part Schematics Acquired . | . . . . . Parts Built . | . . . . . Authchips . | . . . . . Time . | . . . . . Total Part Build Rating . | . . . . . Parts Repaired . | . . . . . Time . | . . . . . Parts Recycled . | . . . . . Recycled Matter . | . . . . . Retrieved Matter . | . . . . . Retrieved Components . | . . . . . Parts Scanalyzed . | . . . . . Part Schematics Acquired . | . . . . . Parts Damaged . | . . . . . Bothacking | -11 -10 -10 -9 -9 ------------ Run | Yrd Mat Min Mat Min Used RIF Installer . | . . . . . Robots Hacked . | . . . . . Non-combat . | . . . . . Combat . | . . . . . Robot Hacks Applied . | . . . . . Relay Couplers Released . | . . . . . Fabnet Peak Effective % . | . . . . . Robots Rewired . | . . . . . Allies Hacked . | . . . . . Hacks Repelled . | . . . . . Allies | -11 -10 -10 -9 -9 -------- Run | Yrd Mat Min Mat Min Total Allies . | . . . . . Largest Group . | . . . . . Highest-Rated Group . | . . . . . Highest-Rated Ally . | . . . . . Total Orders 1 | . . . . 1 EXPLORE 1 | . . . . 1 Ally Attacks . | . . . . . Total Damage . | . . . . . Kills . | . . . . . Allies Corrupted . | . . . . . Allies Melted . | . . . . . Intel | -11 -10 -10 -9 -9 ------- Run | Yrd Mat Min Mat Min Robot Analysis Total . | . . . . . Derelict Logs Recovered . | . . . . . Drone Launches 20 | . . . . 20 Drone Recoveries 19 | . . . . 19 Exploration | -11 -10 -10 -9 -9 ------------- Run | Yrd Mat Min Mat Min Turns Passed 978 | 89 101 255 263 270 Spaces Moved 502 | 63 80 134 163 62 Core 13 | 13 . . . . Treads . | . . . . . Legs 470 | 50 80 134 163 43 Wheels 19 | . . . . 19 Hover . | . . . . . Flight . | . . . . . Fastest Speed 50 | 50 120 120 120 100 Average Speed 118 | 105 120 120 120 118 Slowest Speed 190 | 120 120 120 120 190 Overloaded Moves . | . . . . . Propulsion Burnouts . | . . . . . Robots Hopped . | . . . . . Cave-ins Triggered . | . . . . . Exploration Rate (%) 37 | 5 19 43 24 94 Regions Visited 4 Branch Regions 2 Pre-discovered Areas . | . . . . . Known Exits Taken . | . . . . . Unknown Exits Taken 4 | 1 1 1 1 . Scrap Searched 1 | . . 1 . . Spaces Dug . | . . . . . Terrain Destroyed 30 | . . 15 15 . Melee . | . . . . . Projectile . | . . . . . AOE 30 | . . 15 15 . Terrain Rammed . | . . . . . Walls Destroyed . | . . . . . Machines Disabled . | . . . . . Actions | -11 -10 -10 -9 -9 --------- Run | Yrd Mat Min Mat Min Total 773 | 76 85 186 203 223 Wait 153 | . 1 12 7 133 Move 498 | 62 79 133 162 62 Hop . | . . . . . Pick Up 18 | 4 2 4 6 2 Fast Attach 9 | 5 1 . . 3 Attach 8 | 1 . 3 2 2 Detach . | . . . . . Swap 13 | 1 . 6 4 2 Drop 10 | . 1 4 3 2 Fire 62 | 3 . 23 19 17 Melee . | . . . . . Ram . | . . . . . Kick 2 | . 1 1 . . Crush . | . . . . . Escape Stasis . | . . . . . Rewire . | . . . . . Trap . | . . . . . Miscellaneous . | . . . . . Route ------- -11/Scrapyard -10/Materials -10/Mines -9/Materials -9/Mines (discovered 2 exits: *Mat x2) History --------- Turn | Location | Event 2 | -11/Scrapyard | Met Revision 17 62 | -11/Scrapyard | Discovered new exit (range 8) 90 | -11/Scrapyard | Entered Materials 176 | -10/Materials | Discovered new exit (range 14) 191 | -10/Materials | Entered Mines 225 | -10/Mines | Received a Rocket Launcher from a helpful Derelict 305 | -10/Mines | Build established: Mutant 421 | -10/Mines | Discovered new exit (range 9) 446 | -10/Mines | Entered Materials 446 | -9/Materials | Evolved 2 slots: Propulsion x1, Utility x1 700 | -9/Materials | Discovered new exit (range 9) 709 | -9/Materials | Entered Mines 716 | -9/Mines | Found the Drone Emporium 724 | -9/Mines | Found Prototype Device 725 | -9/Mines | Identified Sensor Drone Bay 746 | -9/Mines | Build established: Scavenger-Mutant 876 | -9/Mines | Discovered new exit (range 25) 887 | -9/Mines | Discovered new exit (range 40) 903 | -9/Mines | Identified exit to Materials 921 | -9/Mines | Core integrity fell below 50% 960 | -9/Mines | Core integrity fell below 20% 969 | -9/Mines | Lost 7 parts (1p3n1u2w) 979 | -9/Mines | Destroyed by G-47 Trooper with Particle Gun Last Messages --------------- 00913_ Hvy. Assault Rifle destroyed. 00914_ Com. Wheel destroyed. 00914_ Sensor Drone retrieved by Sensor Drone Bay. 00916_ Sensor Drone retrieved by Sensor Drone Bay. 00916_ Com. Wheel destroyed. 00917_ Lgt. Ion Engine destroyed. 00931_ S-10 Pest destroyed. 00938_ Com. Wheel destroyed. 00947_ Sensor Drone retrieved by Sensor Drone Bay. 00950_ Sensor Drone retrieved by Sensor Drone Bay. 00950_ Sensor Drone retrieved by Sensor Drone Bay. 00954_ Sensor Drone retrieved by Sensor Drone Bay. 00954_ R-06 Scavenger collects Flight Unit. 00977_ Sensor Drone Bay destroyed. Map ----- +----------------------------------------------------+ | ?????# #??????##""""##????????????????? | | ?????# """ """ #??????#" "#??????????????### | | ?????# """ """ #??????#" "####????????### # | | ?????# """ """ #??????## ## ##??????## | | ?????# #??????### ## #??????# | | ?????# #??????# X #??????# ? | | ??????####### #####??????# ##??????# #? | | ????????????# #?????????## ##???????# #? | | ????????????# #########?# ##???????# #?? | | ????????????# #?## #??????## #??? | | ????????????# ####### #??### #??????# < ##?? | | ????????????# ####### #????## = ##??????# #?? | | ????????????# ## ####??## = ##???????# ##? | | ????????????##### ## ##??## ##?????##### #? | | ???????????????## # #???#!#?###?## ### #? | | ??????????????## #???#!#?# ### ### #? | | ??????????????# ## ##???#*#?# ## | | ??????????????# ##?###????#%#?# ### | | ??????????????## ##??####### #?# ##?# | | ???????????????## #### ### $ ##??## ## | | ????????????????# # #????# #? | | ???????????????## u###### #????# #? | | ???????####???## sr #????# #### ##???## #? | | ???????# #?## %g #????# #??####??### ## | | ???????# ## ##s ##????# #???????## # | | ???????# ### @#?????# #????#### # | | ???????## ##?# ####### #???## | | ????????## ##??# #??## ## | | ?????????#### ##???## #########??# ##? | | ????????????## #?????# #?????????## ##?? | | ?????????????# #######s######???## ##?? | | ?????????????# #??## ##? | | ????????????## ####### #### #?## #? | | ????????????# ##????# #??# #?# ## | | ????????????# #????# #??# ### # | | ????????????## #????# #### ## | | ?????????????## #??### ####### #### | | ??????????????### #### #????# #### | | ?????????????#### ## #????# ## | | ?????????????# #????## # | | ?????????????# ##????# ## | | ???????????### ## #????## ##? | | ??????????## # #?????### #?? | | ????????### ##???????## ## #?? | | ???????## ##?######### ### ##?? | | ??????## ## ##??# #?###??? | | ??????# #### ##???# ####### #??????? | | ??????# #??## ######????# #???### #??????? | | ?####### #??## #???####### #???# #??????? | | ?# #?### #??## #??## ##### #??????? | +----------------------------------------------------+ Best States ------------- Heat Dissipation 38 Energy Generation 14 Energy Capacity 250 Matter Stores 300 Matter Capacity 300 Sight Range 16 Terrain Scan Density 10 Armor Coverage 150 Weapon Shielding 33 Evasion (%) 55 Targeting Accuracy 5 Item Schematics ----------------- None Robot Schematics ------------------ None Fabricated ------------ Nothing Alien Tech Used ----------------- None Achievements -------------- Backstab Release The Drones! Challenges ------------ None Game ------ Seed HugeSurveybotComputer Manual? 0 Play Time 00:39:56 Cumulative 6.6 hours Start 2024.03.09 @ 16:38:18 End 2024.03.10 @ 07:59:16 Sessions 3 Manual Loads 0 Difficulty Rogue Special Mode None Game No. 9 Rogue 9 Adventurer 0 Explorer 0 Win Type - Total 0 Types 0/0/0/0/0/0/0/0/0 Lore% 2 Gallery% 6 Achievement% 7 Wizard Run 0 Options --------- Layout 1 ASCII 0 Keyboard 0 Movement Numpad Keybinds 0 Fullscreen 2 Font 24/Smallcaps Map View 50x35 Zoom Use 0% Tactical HUD 1 Map Filters NONE Filters NONE Steam 1 RUN: 4d14d2df-e2b3-4ccb-9ba4-89c2e9a03e85